fUSD/lending_fUSD_20240212
["ID","MTS","AMOUNT","RATE_DAILY","PERIOD"]
[313830670,1707748243533,-500.0,0.00022848,2]
[313830671,1707748243542,-500.0,0.00022848,2]
[313830672,1707748243552,-500.0,0.00022848,2]
[313830673,1707748243561,-500.0,0.00022848,2]
[313830674,1707748243570,-500.0,0.00022848,2]
[313830675,1707748243579,-500.0,0.00022848,2]
[313830676,1707748243588,-522.68,0.00022848,2]
[313830677,1707748243597,-500.0,0.00022848,2]
[313830678,1707748243605,-500.0,0.00022848,2]
[313830679,1707748243614,-500.0,0.00022848,2]
[313830680,1707748243623,-500.0,0.00022848,2]
[313830682,1707748243632,-555.45472676,0.00022848,2]
[313830683,1707748243641,-500.0,0.00022848,2]
[313830685,1707748243650,-500.0,0.00022848,2]
[313830687,1707748243660,-500.0,0.00022848,2]
[313830689,1707748243669,-500.0,0.00022848,2]
[313830691,1707748243678,-520.17804367,0.00022848,2]
[313830693,1707748243688,-500.0,0.00022848,2]
[313830695,1707748243697,-500.0,0.00022848,2]
[313830696,1707748243707,-500.0,0.00022848,2]
[313830697,1707748243716,-500.0,0.00022848,2]
[313830698,1707748243725,-500.0,0.00022848,2]
[313830699,1707748243934,-500.0,0.00022848,2]
[313830700,1707748243944,-500.0,0.00022848,2]
[313830701,1707748243953,-500.0,0.00022848,2]
[313830702,1707748243962,-500.0,0.00022848,2]
[313830703,1707748243971,-500.0,0.00022848,2]
[313830704,1707748243980,-500.0,0.00022848,2]
[313830705,1707748243990,-500.0,0.00022848,2]
[313830706,1707748244000,-509.35174083,0.00022848,2]
[313830707,1707748244009,-500.0,0.00022848,2]
[313830708,1707748244018,-500.0,0.00022848,2]
[313830709,1707748244028,-500.0,0.00022848,2]
[313830710,1707748244038,-500.0,0.00022848,2]
[313830711,1707748244048,-500.0,0.00022848,2]
[313830712,1707748244058,-500.0,0.00022848,2]
[313830713,1707748244067,-500.0,0.00022848,2]
[313830714,1707748244077,-500.0,0.00022848,2]
[313830715,1707748244086,-514.7149925,0.00022848,2]
[313830716,1707748244095,-504.68864955,0.00022848,2]
[313830717,1707748244104,-500.0,0.00022848,2]
[313830718,1707748244113,-500.0,0.00022848,2]
[313830719,1707748244122,-500.0,0.00022848,2]
[313830720,1707748244131,-500.0,0.00022848,2]
[313830721,1707748244140,-500.0,0.00022848,2]
[313830722,1707748244149,-500.0,0.00022848,2]
[313830723,1707748244159,-500.0,0.00022848,2]
[313830724,1707748244168,-522.20125089,0.00022848,2]
[313830725,1707748244177,-500.0,0.00022848,2]
[313830726,1707748244186,-500.0,0.00022848,2]
[313830727,1707748244195,-500.0,0.00022848,2]
[313830728,1707748244205,-587.69,0.00022848,2]
[313830729,1707748244214,-500.0,0.00022848,2]
[313830730,1707748244223,-500.0,0.00022848,2]
[313830731,1707748244232,-500.0,0.00022848,2]
[313830732,1707748244244,-500.0,0.00022848,2]
[313830733,1707748244253,-500.0,0.00022848,2]
[313830734,1707748244263,-506.81850153,0.00022848,2]
[313830735,1707748244272,-536.3,0.00022848,2]
[313830736,1707748244281,-500.0,0.00022848,2]
[313830737,1707748244290,-500.0,0.00022848,2]
[313830738,1707748244300,-500.0,0.00022848,2]
[313830739,1707748244311,-588.64057359,0.00022848,2]
[313830740,1707748244321,-500.0,0.00022848,2]
[313830741,1707748244330,-500.0,0.00022848,2]
[313830742,1707748244339,-500.0,0.00022848,2]
[313830743,1707748244350,-500.0,0.00022848,2]
[313830744,1707748244359,-588.66,0.00022848,2]
[313830745,1707748244369,-188.04534104,0.00022848,2]
[313830746,1707748244379,-500.0,0.00022848,2]
[313830747,1707748244389,-500.0,0.00022848,2]
[313830748,1707748244399,-500.0,0.00022848,2]
[313830749,1707748244410,-500.0,0.00022848,2]
[313830750,1707748244419,-500.0,0.00022848,2]
[313830751,1707748244428,-500.0,0.00022848,2]
[313830752,1707748244438,-500.0,0.00022848,2]
[313830753,1707748244447,-500.0,0.00022848,2]
[313830754,1707748244457,-500.0,0.00022848,2]
[313830755,1707748244467,-500.0,0.00022848,2]
[313830756,1707748244476,-500.0,0.00022848,2]
[313830757,1707748244487,-500.0,0.00022848,2]
[313830758,1707748244496,-500.0,0.00022848,2]
[313830759,1707748244506,-500.0,0.00022848,2]
[313830760,1707748244515,-500.0,0.00022848,2]
[313830761,1707748244524,-500.0,0.00022848,2]
[313830762,1707748244533,-500.0,0.00022848,2]
[313830763,1707748244542,-500.0,0.00022848,2]
[313830764,1707748244552,-500.0,0.00022848,2]
[313830765,1707748244561,-500.0,0.00022848,2]
[313830766,1707748244571,-500.0,0.00022848,2]
[313830767,1707748244581,-500.0,0.00022848,2]
[313830768,1707748244590,-500.0,0.00022848,2]
[313830769,1707748244600,-500.0,0.00022848,2]
[313830770,1707748244610,-551.11787338,0.00022848,2]
[313830771,1707748244619,-500.0,0.00022848,2]
[313830772,1707748244628,-500.0,0.00022848,2]
[313830773,1707748244637,-500.0,0.00022848,2]
[313830774,1707748244647,-500.0,0.00022848,2]
[313830775,1707748244656,-500.0,0.00022848,2]
[313830776,1707748244666,-500.0,0.00022848,2]
[313830777,1707748244675,-500.0,0.00022848,2]
[313830778,1707748244685,-500.0,0.00022848,2]
[313830779,1707748244694,-500.0,0.00022848,2]
[313830780,1707748244703,-500.0,0.00022848,2]
[313830781,1707748244712,-196.90740919,0.00022848,2]
[313830782,1707748244722,-500.0,0.00022848,2]
[313830783,1707748244731,-500.0,0.00022848,2]
[313830784,1707748244742,-250.0,0.00022848,2]
[313830785,1707748244752,-500.0,0.00022848,2]
[313830786,1707748244761,-212.22257756,0.00022848,2]
[313830787,1707748244771,-500.0,0.00022848,2]
[313830788,1707748244781,-500.0,0.00022848,2]
[313830789,1707748244791,-565.36358067,0.00022848,2]
[313830790,1707748244800,-500.0,0.00022848,2]
[313830791,1707748244810,-500.0,0.00022848,2]
[313830792,1707748244819,-500.0,0.00022848,2]
[313830793,1707748244828,-500.0,0.00022848,2]
[313830794,1707748244837,-377.17095555,0.00022848,2]
[313830795,1707748244847,-448.38,0.00022848,2]
[313830796,1707748244856,-500.0,0.00022848,2]
[313830797,1707748244867,-500.0,0.00022848,2]
[313830798,1707748244876,-200.0,0.00022848,2]
[313830799,1707748244886,-500.0,0.00022848,2]
[313830800,1707748244895,-500.0,0.00022848,2]
[313830801,1707748244904,-859.17,0.00022848,2]
[313830802,1707748244913,-8642.09,0.00022848,2]
[313830803,1707748244923,-500.0,0.00022848,2]
[313830804,1707748244932,-500.0,0.00022848,2]
[313830805,1707748244942,-500.0,0.00022848,2]
[313830806,1707748244951,-500.0,0.00022848,2]
[313830807,1707748244961,-500.0,0.00022848,2]
[313830808,1707748244970,-907.74,0.00022848,2]
[313830809,1707748244979,-659.8,0.00022848,2]
[313830810,1707748244989,-500.0,0.00022848,2]
[313830811,1707748244999,-500.0,0.00022848,2]
[313830812,1707748245008,-6204.93,0.00022848,2]
[313830813,1707748245018,-500.0,0.00022848,2]
[313830814,1707748245028,-500.0,0.00022848,2]
[313830815,1707748245037,-500.0,0.00022848,2]
[313830816,1707748245047,-500.0,0.00022848,2]
[313830817,1707748245056,-1134.83,0.00022848,2]
[313830818,1707748245067,-500.0,0.00022848,2]
[313830819,1707748245076,-1147.71,0.00022848,2]
[313830820,1707748245086,-500.0,0.00022848,2]
[313830821,1707748245095,-500.0,0.00022848,2]
[313830822,1707748245104,-500.0,0.00022848,2]
[313830823,1707748245114,-500.0,0.00022848,2]
[313830824,1707748245123,-2142.38,0.00022848,2]
[313830825,1707748245132,-1578.9,0.00022848,2]
[313830826,1707748245141,-500.0,0.00022848,2]
[313830827,1707748245151,-500.0,0.00022848,2]
[313830828,1707748245160,-500.0,0.00022848,2]
[313830829,1707748245169,-500.0,0.00022848,2]
[313830830,1707748245179,-628.61,0.00022848,2]
[313830831,1707748245188,-1527.65,0.00022848,2]
[313830832,1707748245198,-500.0,0.00022848,2]
[313830833,1707748245208,-500.0,0.00022848,2]
[313830834,1707748245217,-396.06740919,0.00022848,2]
[313830835,1707748245226,-500.0,0.00022848,2]
[313830836,1707748245236,-500.0,0.00022848,2]
[313830837,1707748245245,-1715.49,0.00022848,2]
[313830838,1707748245254,-500.0,0.00022848,2]
[313830839,1707748245263,-500.0,0.00022848,2]
[313830840,1707748245272,-500.0,0.00022848,2]
[313830841,1707748245282,-1537.51,0.00022848,2]
[313830842,1707748245292,-500.0,0.00022848,2]
[313830843,1707748245302,-500.0,0.00022848,2]
[313830844,1707748245314,-1757.6,0.00022848,2]
[313830845,1707748245323,-500.0,0.00022848,2]
[313830846,1707748245333,-500.0,0.00022848,2]
[313830847,1707748245342,-500.0,0.00022848,2]
[313830848,1707748245351,-585.93443489,0.00022848,2]
[313830849,1707748245360,-2089.11,0.00022848,2]
[313830850,1707748245370,-1017.68,0.00022848,2]
[313830851,1707748245379,-500.0,0.00022848,2]
[313830852,1707748245389,-500.0,0.00022848,2]
[313830853,1707748245400,-500.0,0.00022848,2]
[313830854,1707748245409,-1161.37,0.00022848,2]
[313830855,1707748245418,-500.0,0.00022848,2]
[313830856,1707748245428,-609.43,0.00022848,2]
[313830857,1707748245437,-500.0,0.00022848,2]
[313830858,1707748245447,-418.75349245,0.00022848,2]
[313830859,1707748245456,-590.03,0.00022848,2]
[313830860,1707748245466,-500.0,0.00022848,2]
[313830861,1707748245475,-10286.15,0.00022848,2]
[313830862,1707748245486,-500.0,0.00022848,2]
[313830863,1707748245495,-500.0,0.00022848,2]
[313830864,1707748245504,-500.0,0.00022848,2]
[313830865,1707748245513,-500.0,0.00022848,2]
[313830866,1707748245523,-500.0,0.00022848,2]
[313830867,1707748245532,-321.08689497,0.00022848,2]
[313830868,1707748245541,-500.0,0.00022848,2]
[313830869,1707748245551,-500.0,0.00022848,2]
[313830870,1707748245560,-500.0,0.00022848,2]
[313830871,1707748245569,-1897.21,0.00022848,2]
[313830872,1707748245579,-935.54,0.00022848,2]
[313830873,1707748245589,-500.0,0.00022848,2]
[313830874,1707748245599,-500.0,0.00022848,2]
[313830875,1707748245608,-7934.79,0.00022848,2]
[313830876,1707748245618,-577.6,0.00022848,2]
[313830877,1707748245627,-500.0,0.00022848,2]
[313830878,1707748245636,-500.0,0.00022848,2]
[313830879,1707748245645,-500.0,0.00022848,2]
[313830880,1707748245655,-167.8231689,0.00022848,2]
[313830881,1707748245664,-500.0,0.00022848,2]
[313830882,1707748245673,-500.0,0.00022848,2]
[313830883,1707748245682,-500.0,0.00022848,2]
[313830884,1707748245691,-500.0,0.00022848,2]
[313830885,1707748245700,-500.0,0.00022848,2]
[313830886,1707748245709,-176.77,0.00022848,2]
[313830887,1707748245719,-407.44470297,0.00022848,2]
[313830888,1707748245729,-500.0,0.00022848,2]
[313830889,1707748245739,-500.0,0.00022848,2]
[313830890,1707748245748,-500.0,0.00022848,2]
[313830891,1707748245758,-2190.55,0.00022848,2]
[313830892,1707748245767,-500.0,0.00022848,2]
[313830893,1707748245776,-500.0,0.00022848,2]
[313830894,1707748245786,-1376.25,0.00022848,2]
[313830895,1707748245795,-500.0,0.00022848,2]
[313830896,1707748245804,-6405.5,0.00022848,2]
[313830897,1707748245814,-500.0,0.00022848,2]
[313830898,1707748245823,-500.0,0.00022848,2]
[313830899,1707748245832,-500.0,0.00022848,2]
[313830900,1707748245842,-500.0,0.00022848,2]
[313830901,1707748245852,-417.3778529,0.00022848,2]
[313830902,1707748245861,-500.0,0.00022848,2]
[313830904,1707748245871,-500.0,0.00022848,2]
[313830905,1707748245880,-4161.56,0.00022848,2]
[313830906,1707748245890,-692.19,0.00022848,2]
[313830907,1707748245900,-500.0,0.00022848,2]
[313830908,1707748245909,-500.0,0.00022848,2]
[313830909,1707748245918,-551.62,0.00022848,2]
[313830911,1707748245927,-1897992.53589836,0.00022849,2]
[313830912,1707748245937,-4332.81581424,0.00022849,2]
[313830913,1707748245946,-413.3917858,0.00022849,2]
[313830914,1707748245955,-156.260284,0.00022849,2]
[313830915,1707748245964,-234.53774303,0.00022849,2]
[313830916,1707748245974,-178.72127769,0.00022849,2]
[313830918,1707748245984,-139118.26014599,0.00022849,2]
[313830919,1707748245995,-377.78762907,0.0002285,3]
[313830920,1707748246005,-311196.13682662,0.0002285,2]
[313830921,1707748246014,-261.03906206,0.00022861,2]
[313830922,1707748246024,-300.0,0.00022871,2]
[313830923,1707748246033,-300.0,0.00022875,2]
[313830924,1707748246043,-150.31,0.00022876,2]
[313830925,1707748246052,-569.20043943,0.00022884,2]
[313830926,1707748246061,-1000.0,0.00022885,2]
[313830927,1707748246071,-1000.0,0.00022885,2]
[313830929,1707748246081,-1000.0,0.00022885,2]
[313830931,1707748246091,-1000.0,0.00022885,2]
[313830933,1707748246101,-1000.0,0.00022885,2]
[313830935,1707748246110,-1000.0,0.00022885,2]
[313830936,1707748246119,-1000.0,0.00022885,2]
[313830937,1707748246129,-1000.0,0.00022885,2]
[313830938,1707748246138,-1000.0,0.00022885,2]
[313830939,1707748246148,-1000.0,0.00022885,2]
[313830940,1707748246157,-1000.0,0.00022885,2]
[313830941,1707748246167,-1000.0,0.00022885,2]
[313830942,1707748246177,-1000.0,0.00022885,2]
[313830943,1707748246187,-1000.0,0.00022885,2]
[313830944,1707748246197,-1000.0,0.00022885,2]
[313830945,1707748246206,-1000.0,0.00022885,2]
[313830946,1707748246216,-1000.0,0.00022885,2]
[313830947,1707748246290,-1000.0,0.00022885,2]
[313830948,1707748246301,-1000.0,0.00022885,2]
[313830949,1707748246315,-1000.0,0.00022885,2]
[313830950,1707748246335,-1000.0,0.00022885,2]
[313830951,1707748246355,-1000.0,0.00022885,2]
[313830952,1707748246377,-1000.0,0.00022885,2]
[313830953,1707748246399,-1000.0,0.00022885,2]
[313830954,1707748246421,-1000.0,0.00022885,2]
[313830955,1707748246442,-1000.0,0.00022885,2]
[313830956,1707748246466,-1000.0,0.00022885,2]
[313830957,1707748246496,-1000.0,0.00022885,2]
[313830958,1707748246529,-1000.0,0.00022885,2]
[313830959,1707748246538,-683.0471,0.00022885,2]
[313830960,1707748246547,-500.0,0.00022885,2]
[313830961,1707748246557,-500.0,0.00022885,2]
[313830962,1707748246566,-500.0,0.00022885,2]
[313830963,1707748246575,-500.0,0.00022885,2]
[313830964,1707748246586,-500.0,0.00022885,2]
[313830965,1707748246595,-500.0,0.00022885,2]
[313830966,1707748246604,-500.0,0.00022885,2]
[313830967,1707748246614,-551.7121,0.00022885,2]
[313830968,1707748246623,-984.0,0.00022899,2]
[313830969,1707748246633,-200000.0,0.000229,2]
[313830970,1707748246642,-53936.37374196,0.000229,2]
[313830971,1707748246652,-400.0,0.000229,8]
[313830972,1707748246661,-315.23652544,0.00022904,2]
[313830973,1707748246671,-495.31126188,0.00022915,2]
[313830974,1707748246681,-300.0,0.00022919,2]
[313830975,1707748246691,-500.0,0.00022922,2]
[313830976,1707748246701,-113918.1374999,0.00022925,2]
[313830977,1707748246710,-2945.6887027,0.00022925,2]
[313830978,1707748246719,-114006.0959999,0.00022925,2]
[313830980,1707748246728,-4105.8272527,0.00022925,2]
[313830982,1707748246737,-114006.0959999,0.00022925,2]
[313830984,1707748246746,-288.01753648,0.00022927,2]
[313830986,1707748246756,-126968.53537876,0.00022927,2]
[313830988,1707748246765,-208.07992085,0.00022927,2]
[313830990,1707748246775,-155.0,0.00022927,2]
[313830992,1707748246784,-504.03645429,0.00022927,2]
[313830994,1707748246793,-201.31214824,0.00022927,2]
[313830996,1707748246803,-306.23581506,0.00022927,2]
[313830998,1707748246812,-697.32652648,0.00022927,2]
[313831000,1707748246821,-843.0,0.00022927,2]
[313831002,1707748246831,-155.0,0.00022927,2]
[313831004,1707748246840,-304.8999602,0.00022927,2]
[313831006,1707748246850,-1954.2238064,0.00022927,2]
[313831008,1707748246859,-289.73142306,0.00022927,2]
[313831011,1707748246869,-203.39158238,0.00022927,2]
[313831012,1707748246879,-8694.13477272,0.00022927,2]
[313831014,1707748246889,-163.71547153,0.00022927,2]
[313831016,1707748246898,-207.10060968,0.00022927,2]
[313831018,1707748246907,-462.16379328,0.00022927,2]
[313831020,1707748246917,-161.29335573,0.00022927,2]
[313831022,1707748246926,-356.8393713,0.00022927,2]
[313831024,1707748246936,-183.17618176,0.00022927,2]
[313831025,1707748246945,-214.44321405,0.00022927,2]
[313831026,1707748246955,-156.6898714,0.00022927,2]
[313831027,1707748246964,-2305.02815688,0.00022927,2]
[313831028,1707748246974,-269.54504552,0.00022927,2]
[313831029,1707748246984,-260.58052071,0.00022927,2]
[313831030,1707748246994,-155.0,0.00022928,2]
[313831031,1707748247003,-15540.15608239,0.00022928,2]
[313831032,1707748247012,-155.0,0.00022928,2]
[313831033,1707748247021,-1230.05731595,0.00022928,2]
[313831034,1707748247030,-156.81931858,0.00022928,2]
[313831035,1707748247039,-156.47860661,0.00022928,2]
[313831036,1707748247049,-534.13363385,0.00022928,2]
[313831037,1707748247058,-933.36690806,0.00022928,2]
[313831038,1707748247067,-750.40272192,0.00022928,2]
[313831039,1707748247077,-262.676225,0.00022928,2]
[313831040,1707748247086,-3866.06682937,0.00022928,2]
[313831041,1707748247096,-768.8565787,0.00022928,2]
[313831042,1707748247106,-358.62920343,0.00022929,2]
[313831043,1707748247116,-500.0,0.00022929,2]
[313831044,1707748247125,-500.0,0.00022929,2]
[313831045,1707748247134,-178.24430817,0.00022929,2]
[313831046,1707748247143,-500.0,0.00022929,2]
[313831047,1707748247152,-435.58098454,0.00022929,2]
[313831048,1707748247162,-500.0,0.00022929,2]
[313831049,1707748247172,-500.0,0.00022929,2]
[313831050,1707748247182,-500.0,0.00022929,2]
[313831051,1707748247191,-622.73935116,0.00022929,2]
[313831052,1707748247201,-500.0,0.00022929,2]
[313831053,1707748247210,-500.0,0.00022929,2]
[313831054,1707748247219,-500.0,0.00022929,2]
[313831055,1707748247228,-503.78272542,0.00022929,2]
[313831056,1707748247240,-500.0,0.00022929,2]
[313831057,1707748247249,-500.0,0.00022929,2]
[313831058,1707748247259,-500.0,0.00022929,2]
[313831059,1707748247269,-500.0,0.00022929,2]
[313831060,1707748247278,-500.0,0.00022929,2]
[313831061,1707748247289,-500.0,0.00022929,2]
[313831062,1707748247301,-591.34334373,0.00022929,2]
[313831063,1707748247310,-500.0,0.00022929,2]
[313831064,1707748247319,-500.0,0.00022929,2]
[313831065,1707748247329,-387.05233048,0.00022929,2]
[313831066,1707748247340,-500.0,0.00022929,2]
[313831067,1707748247350,-500.0,0.00022929,2]
[313831068,1707748247360,-500.0,0.00022929,2]
[313831069,1707748247370,-500.0,0.00022929,2]
[313831070,1707748247379,-500.0,0.00022929,2]
[313831071,1707748247390,-500.0,0.00022929,2]
[313831072,1707748247399,-500.0,0.00022929,2]
[313831073,1707748247409,-500.0,0.00022929,2]
[313831074,1707748247418,-1262.54,0.00022929,2]
[313831075,1707748247427,-500.0,0.00022929,2]
[313831076,1707748247437,-500.0,0.00022929,2]
[313831077,1707748247446,-500.0,0.00022929,2]
[313831078,1707748247455,-500.0,0.00022929,2]
[313831079,1707748247465,-1207.47,0.00022929,2]
[313831080,1707748247474,-500.0,0.00022929,2]
[313831081,1707748247483,-492.44805695,0.00022929,2]
[313831082,1707748247497,-500.0,0.00022929,2]
[313831083,1707748247506,-1000.0,0.00022929,7]
[313831084,1707748247516,-500.0,0.00022929,2]
[313831085,1707748247525,-500.0,0.00022929,2]
[313831086,1707748247534,-500.0,0.00022929,2]
[313831087,1707748247543,-500.0,0.00022929,2]
[313831088,1707748247552,-500.0,0.00022929,2]
[313831089,1707748247562,-578.70255441,0.00022929,2]
[313831090,1707748247571,-581.28,0.00022929,2]
[313831091,1707748247583,-500.0,0.00022929,2]
[313831092,1707748247593,-500.0,0.00022929,2]
[313831093,1707748247602,-500.0,0.00022929,2]
[313831094,1707748247611,-500.0,0.00022929,2]
[313831095,1707748247620,-500.0,0.00022929,2]
[313831096,1707748247629,-500.0,0.00022929,2]
[313831097,1707748247638,-500.0,0.00022929,2]
[313831098,1707748247647,-500.0,0.00022929,2]
[313831099,1707748247657,-500.0,0.00022929,2]
[313831100,1707748247666,-500.0,0.00022929,2]
[313831101,1707748247675,-500.0,0.00022929,2]
[313831102,1707748247685,-416.9,0.00022929,2]
[313831103,1707748247694,-500.0,0.00022929,2]
[313831104,1707748247703,-500.0,0.00022929,2]
[313831105,1707748247713,-500.0,0.00022929,2]
[313831106,1707748247724,-500.0,0.00022929,2]
[313831107,1707748247733,-500.0,0.00022929,2]
[313831108,1707748247744,-500.0,0.00022929,2]
[313831109,1707748247753,-500.0,0.00022929,2]
[313831110,1707748247762,-662.95,0.00022929,2]
[313831111,1707748247770,-500.0,0.00022929,2]
[313831112,1707748247780,-500.0,0.00022929,2]
[313831113,1707748247789,-500.0,0.00022929,2]
[313831114,1707748247798,-500.0,0.00022929,2]
[313831115,1707748247808,-500.0,0.00022929,2]
[313831116,1707748247817,-500.0,0.00022929,2]
[313831117,1707748247826,-500.0,0.00022929,2]
[313831118,1707748247835,-500.0,0.00022929,2]
[313831119,1707748247845,-500.0,0.00022929,2]
[313831120,1707748247853,-500.0,0.00022929,2]
[313831121,1707748247863,-500.0,0.00022929,2]
[313831122,1707748247872,-500.0,0.00022929,2]
[313831123,1707748247881,-500.0,0.00022929,2]
[313831124,1707748247890,-500.0,0.00022929,2]
[313831125,1707748247899,-785.31,0.00022929,2]
[313831126,1707748247908,-500.0,0.00022929,2]
[313831127,1707748247917,-500.0,0.00022929,2]
[313831128,1707748247927,-500.0,0.00022929,2]
[313831129,1707748247936,-1057.6,0.00022929,2]
[313831130,1707748247945,-500.0,0.00022929,2]
[313831131,1707748247954,-500.0,0.00022929,2]
[313831132,1707748247963,-623.82,0.00022929,2]
[313831133,1707748247972,-500.0,0.00022929,2]
[313831134,1707748247981,-500.0,0.00022929,2]
[313831135,1707748247991,-500.0,0.00022929,2]
[313831136,1707748248000,-500.0,0.00022929,2]
[313831137,1707748248010,-500.0,0.00022929,2]
[313831138,1707748248020,-681.61,0.00022929,2]
[313831139,1707748248029,-500.0,0.00022929,2]
[313831140,1707748248038,-500.0,0.00022929,2]
[313831141,1707748248048,-500.0,0.00022929,2]
[313831142,1707748248057,-1004.0,0.00022929,2]
[313831143,1707748248067,-500.0,0.00022929,2]
[313831144,1707748248076,-500.0,0.00022929,2]
[313831145,1707748248086,-500.0,0.00022929,2]
[313831146,1707748248095,-500.0,0.00022929,2]
[313831147,1707748248104,-500.0,0.00022929,2]
[313831148,1707748248114,-500.0,0.00022929,2]
[313831149,1707748248123,-500.0,0.00022929,2]
[313831150,1707748248133,-274.50278347,0.00022929,2]
[313831151,1707748248142,-500.0,0.00022929,2]
[313831152,1707748248152,-552.64387204,0.00022929,2]
[313831153,1707748248161,-10112.5056975,0.00022935,2]
[313831154,1707748248170,-19029.4996262,0.00022935,2]
[313831155,1707748248179,-500.0,0.00022936,2]
[313831156,1707748248188,-596.39681843,0.00022936,2]
[313831157,1707748248197,-500.0,0.00022936,2]
[313831158,1707748248206,-500.0,0.00022936,2]
[313831159,1707748248215,-500.0,0.00022936,2]
[313831160,1707748248224,-500.0,0.00022936,2]
[313831161,1707748248233,-500.0,0.00022936,2]
[313831162,1707748248243,-500.0,0.00022936,2]
[313831163,1707748248253,-500.0,0.00022936,2]
[313831164,1707748248261,-500.0,0.00022936,2]
[313831165,1707748248271,-500.0,0.00022936,2]
[313831166,1707748248280,-1000.0,0.00022936,5]
[313831167,1707748248288,-503.56176881,0.00022936,2]
[313831168,1707748248297,-500.0,0.00022936,2]
[313831169,1707748248308,-500.0,0.00022936,2]
[313831170,1707748248317,-500.0,0.00022936,2]
[313831171,1707748248327,-500.0,0.00022936,2]
[313831172,1707748248336,-500.0,0.00022936,2]
[313831173,1707748248345,-500.0,0.00022936,2]
[313831174,1707748248354,-500.0,0.00022936,2]
[313831175,1707748248364,-500.0,0.00022936,2]
[313831176,1707748248373,-422.22587201,0.00022936,2]
[313831177,1707748248384,-518.76046314,0.00022936,2]
[313831178,1707748248393,-468.5311957,0.00022936,2]
[313831179,1707748248402,-500.0,0.00022936,2]
[313831180,1707748248412,-500.0,0.00022936,2]
[313831181,1707748248421,-500.0,0.00022936,2]
[313831182,1707748248431,-4261.6707669,0.00022941,2]
[313831183,1707748248440,-150.31,0.00022957,2]
[313831184,1707748248450,-150.0,0.00022983,2]
[313831185,1707748248459,-150.0,0.00022983,2]
[313831186,1707748248468,-9035.6588918,0.00022984,2]
[313831187,1707748248477,-17027.8116938,0.00022984,2]
[313831188,1707748248488,-3824.4138406,0.00022984,2]
[313831189,1707748248497,-102229.8825,0.00022984,2]
[313831190,1707748248506,-2644.6284398,0.00022984,2]
[313831191,1707748248515,-102455.6575999,0.00022984,2]
[313831192,1707748248524,-3689.8485777,0.00022984,2]
[313831193,1707748248534,-102455.6575999,0.00022984,2]
[313831194,1707748248543,-13320.81839998,0.0002299,2]
[313831195,1707748248552,-495.31126188,0.0002299,2]
[313831196,1707748248561,-258.39023762,0.00022997,2]
[313831197,1707748248571,-1861.33867425,0.00022997,2]
[313831198,1707748248581,-172.24605798,0.00022997,2]
[313831199,1707748248590,-172.44020422,0.00022997,2]
[313831200,1707748248601,-195.67489377,0.00022999,2]
[313831201,1707748248610,-157.34448278,0.00022999,2]
[313831202,1707748248619,-500.0,0.00022999,2]
[313831203,1707748248629,-500.0,0.00022999,2]
[313831204,1707748248638,-500.0,0.00022999,2]
[313831205,1707748248647,-500.0,0.00022999,2]
[313831206,1707748248656,-500.0,0.00022999,2]